Cogmind - Beta 12 @@@ ROGUE MODE // 2023.08.15 @ 20:13:40 Player: Shadow Pussy wanter Result: Destroyed by S-43 Plague with Heavy Machine Gun Performance ------------- Evolutions (9) 4500 Regions Visited (33) 6600 Robots Destroyed (391) 1955 Value Destroyed (17865) 17865 Prototype IDs (62) 1240 Alien Tech Used (2) 400 Bonus (10199) 10199 TOTAL SCORE: 42759 Bonus ------- High Alert Combat Kills 2857 Follower Combat Kills 1721 Entered Garrisons 200 Network Hubs Disabled 400 Aligned with FarCom 300 Met Zhirov 300 Met Warlord at Base 500 MAIN.C Attacked Warlord 500 Warlord Defense Kills 220 Built Enhanced Grunts 300 A7 Reached Mainframe 300 Met R17 at Cetus 500 Met R17 at Research 2000 Met Warlord at Research 2000 Friendly Fire -1899 Cogmind --------- Core Integrity 0/1600 Matter 264/300 Energy 99/100 System Corruption 50% Temperature Cool (0) Movement Core (50) Location -1/Command Parts ------- > --- POWER (4) -------- (None) > --- PROPULSION (6) --- (None) > --- UTILITY (11) ----- Advanced Targeting Computer Graphene Brace Experimental Hacking Suite Advanced System Shield > --- WEAPON (4) ------- (None) > --- INVENTORY (5) ---- Layered Light Armor Plating Antimissile System Long-range Missile Launcher Improved Remote Datajack Lance Peak State ------------ > --- POWER ------------ Quantum Reactor Quantum Reactor Vortex Chain Reactor > --- PROPULSION ------- Spiked Medium Treads Armored Medium Treads Armored Medium Treads Armored Medium Treads Heavy Treads > --- UTILITY ---------- Advanced Cooling System Experimental Coolant Injector Huge Storage Unit Advanced Targeting Computer Experimental Core Analyzer Centrium Medium Armor Plating Centrium Medium Armor Plating Thermal Barrier Advanced Force Field Improved Hacking Suite Improved Hacking Suite > --- WEAPON ----------- Long-range Phase Cannon Enhanced Nova Cannon Enhanced Nova Cannon Magnetic Acceleration Cannon > --- INVENTORY -------- Quantum Reactor Quantum Reactor Armored Medium Treads High-density Centrium Wheel Advanced Cryofiber Web Advanced Energy Well Improved Matter Compressor Centrium Medium Armor Plating Graphene Brace Advanced Focal Shield Advanced Remote Shield Experimental Hacking Suite Advanced System Shield Advanced System Shield Long-range Tractor Beam Advanced Variable Charge Gun Advanced Variable Charge Gun Nova Cannon Vortex Driver Enhanced Nova Cannon Long-range Missile Launcher Improved Remote Datajack [Rating: 195] Favorites ----------- Power Quantum Reactor Engine Deuterium Engine Power Core Fission Core Reactor Quantum Reactor Propulsion Medium Treads Treads Medium Treads Leg Improved Aluminum Leg Wheel High-density Centrium Wheel Flight Unit Field Propulsion Array Utility Huge Storage Unit Device Improved Cooling System Storage Huge Storage Unit Processor Improved Targeting Computer Hackware Improved System Shield Protection Centrium Medium Armor Plating Weapon Gauss Rifle Energy Gun Advanced Variable Charge Gun Energy Cannon Heavy Phase Cannon Ballistic Gun Gauss Rifle Ballistic Cannon Magnetic Acceleration Cannon Launcher Grenade Launcher Special Weapon Improved Remote Datajack Impact Weapon Heavy Mace Piercing Weapon Lance Build | -11 -10 -10 -9 -9 -9 -8 -8 -8 -8 -7 -7 -7 -7 -6 -6 -6 -6 -6 -6 -5 -5 -5 -5 -4 -4 -4 -4 -4 -3 -3 -2 -1 -1 ------- Run | Jun Mat Min Mat Min Exi Min Mat Gar Mat Fac Low Low Zio Pro Fac Ext Cet Arc Hub Fac Upp Upp Zhi Pro Fac Upp Upp War Pro Res Res Acc Com Slots Evolved 18 | . . . 2 . . . 2 . . 2 . . . . 2 . . . . 2 . . . . 2 . . . . 2 2 2 . Power 3 | . . . . . . . . . . . . . . . 1 . . . . . . . . . . . . . . . . 2 . Propulsion 4 | . . . . . . . 2 . . . . . . . . . . . . . . . . . . . . . . . 2 . . Utility 9 | . . . 1 . . . . . . 2 . . . . 1 . . . . 2 . . . . 1 . . . . 2 . . . Weapon 2 | . . . 1 . . . . . . . . . . . . . . . . . . . . . 1 . . . . . . . . Parts Attached 475 | 6 8 . 11 2 . 3 20 16 11 15 6 . 5 17 47 24 9 23 6 12 1 25 13 11 12 15 10 22 7 15 15 67 21 Power 37 | 1 . . 3 . . . 1 1 1 . . . . 1 3 4 1 1 . . . 2 1 . 1 . . 1 . . . 11 4 Engine 14 | 1 . . 3 . . . 1 1 1 . . . . 1 3 3 . . . . . . . . . . . . . . . . . Core 2 | . . . . . . . . . . . . . . . . 1 . . . . . 1 . . . . . . . . . . . Reactor 21 | . . . . . . . . . . . . . . . . . 1 1 . . . 1 1 . 1 . . 1 . . . 11 4 Propulsion 71 | 2 2 . 2 . . . 6 8 5 . 1 . . 3 4 1 . 3 . 3 . 1 . 1 . 1 2 3 . 3 7 7 6 Treads 61 | . . . 2 . . . 6 8 5 . 1 . . 3 4 1 . 3 . 3 . 1 . 1 . 1 2 3 . 3 7 6 1 Leg 4 | 2 2 . . . . . . . . . . . . . . . . . . . . . . . . . . . . . . . . Wheel 3 | . . . . . . . . . . . . . . . . . . . . . . . . . . . . . . . . 1 2 Hover . | . . . . . . . . . . . . . . . . . . . . . . . . . . . . . . . . . . Flight 3 | . . . . . . . . . . . . . . . . . . . . . . . . . . . . . . . . . 3 Utility 233 | 1 2 . 5 . . 1 5 1 3 12 5 . 2 8 21 13 5 16 4 7 1 19 4 5 8 11 8 10 3 11 5 36 1 Device 158 | . . . . . . . . . . 9 5 . 2 6 11 11 4 14 4 4 1 10 2 4 4 9 7 7 3 8 4 29 . Storage 12 | 1 1 . 3 . . . 2 . 1 . . . . . 1 . . . . . . . 2 . . 1 . . . . . . . Processor 12 | . 1 . 1 . . . 1 . . 1 . . . . 1 1 . . . 1 . 1 . . . . . 2 . 1 1 . . Hackware 10 | . . . . . . . . . . . . . . . 2 . . . . . . . . . 2 . . . . 1 . 5 . Protection 41 | . . . 1 . . 1 2 1 2 2 . . . 2 6 1 1 2 . 2 . 8 . 1 2 1 1 1 . 1 . 2 1 Artifact . | . . . . . . . . . . . . . . . . . . . . . . . . . . . . . . . . . . Weapon 134 | 2 4 . 1 2 . 2 8 6 2 3 . . 3 5 19 6 3 3 2 2 . 3 8 5 3 3 . 8 4 1 3 13 10 Energy Gun 15 | 1 . . . . . . . . . . . . 1 . 3 . 1 . 1 . . . . . 1 . . 1 . 1 . 2 3 Energy Cannon 18 | . 2 . . . . . . . . 1 . . . 1 1 1 . . . . . . 1 1 . . . 1 . . 1 5 3 Ballistic Gun 53 | 1 2 . 1 1 . 1 6 5 2 2 . . 2 2 5 2 . 3 1 1 . 1 3 3 . 2 . 4 2 . . 1 . Ballistic Cannon 20 | . . . . . . . . 1 . . . . . . 3 2 2 . . 1 . 2 2 . 2 1 . . . . 1 3 . Launcher 16 | . . . . 1 . 1 2 . . . . . . 2 1 1 . . . . . . 2 1 . . . . 2 . . 2 1 Special Weapon 3 | . . . . . . . . . . . . . . . . . . . . . . . . . . . . 2 . . 1 . . Impact Weapon 6 | . . . . . . . . . . . . . . . 6 . . . . . . . . . . . . . . . . . . Slashing Weapon . | . . . . . . . . . . . . . . . . . . . . . . . . . . . . . . . . . . Piercing Weapon 3 | . . . . . . . . . . . . . . . . . . . . . . . . . . . . . . . . . 3 Special Melee Weapon . | . . . . . . . . . . . . . . . . . . . . . . . . . . . . . . . . . . Unidentified Prototypes 25 | . 1 . . . . . 1 . . . . . . 1 2 . 2 1 . . . . 4 . . . . 7 . 1 3 2 . Corrupted Parts 3 | . . . . . . . . . . . . . . . . . 1 2 . . . . . . . . . . . . . . . System Corruption 15 | . . . . . . . . . . . . . . . . . 4 11 . . . . . . . . . . . . . . . Parts Lost 69 | . . . 2 . . 1 4 5 1 . 1 . . 1 2 1 . . . . . 5 . 1 1 3 2 . . 2 1 26 10 Power 11 | . . . 1 . . . . 1 . . . . . . . . . . . . . . . . 1 . . . . . . 5 3 Propulsion 19 | . . . 1 . . . 1 3 . . 1 . . 1 . 1 . . . . . 1 . . . 1 1 . . . . 4 4 Utility 22 | . . . . . . 1 . . . . . . . . . . . . . . . 3 . 1 . . 1 . . 1 1 11 3 Weapon 17 | . . . . . . . 3 1 1 . . . . . 2 . . . . . . 1 . . . 2 . . . 1 . 6 . Highest Loss Streak 10 | . . . 1 . . 1 1 2 1 . 1 . . 1 2 1 . . . . . 4 . 1 1 2 2 . . 1 1 10 3 To Critical Strikes . | . . . . . . . . . . . . . . . . . . . . . . . . . . . . . . . . . . Average Slot Usage (%) 95 | . 98 100 99 100 100 95 98 99 99 99 100 100 94 99 99 99 100 96 100 97 94 92 75 94 93 93 93 96 94 94 94 89 69 Engine 4 | . 14 14 11 11 11 11 9 9 9 7 7 7 7 6 13 12 1 . . . . . . . . . . . . . . . . Reactor 4 | . . . . . . . . . . . . . . . . . 4 7 13 11 11 7 5 5 5 10 10 7 5 4 4 12 8 Treads 23 | . . . 9 22 22 22 34 35 36 30 30 30 30 30 26 25 26 26 26 20 17 16 17 17 15 14 14 21 21 19 25 19 6 Device 12 | . . . . . . . . . . 12 14 15 15 12 12 13 13 11 11 13 17 15 15 15 9 14 15 18 21 24 25 17 13 Storage 6 | . 14 14 20 11 11 11 9 9 9 7 7 7 7 7 6 6 6 6 6 5 5 5 5 5 5 5 5 5 5 4 4 4 2 Processor 11 | . 12 14 11 11 11 11 9 9 9 9 7 7 7 7 8 13 13 13 13 17 17 17 17 17 15 15 15 15 15 12 11 10 7 Hackware 1 | . . . . . . . . . . . . . . . 3 . . . . . . . . . 5 5 5 2 . 2 . 5 11 Protection 6 | . . . 1 11 11 6 9 9 8 7 7 7 7 9 7 6 6 4 7 8 5 5 5 6 10 5 5 3 5 5 5 4 . Energy Gun 1 | . 3 . . . . . . . . . . . 2 7 4 . . . . . . . . . 4 3 . . . . . 1 4 Energy Cannon 1 | . 7 . . . . . . . . . . . . 4 . . . . . . . . . . 5 3 . . . . 1 7 5 Ballistic Gun 13 | . 16 28 33 30 33 32 25 26 26 22 23 23 14 8 6 14 . 16 19 17 11 11 . 10 5 6 10 10 9 7 2 . . Ballistic Cannon 3 | . . . . . . . . . . . . . . . 4 5 19 3 . . 5 4 . 5 5 6 10 10 10 9 10 5 . Naked Turns . | . . . . . . . . . . . . . . . . . . . . . . . . . . . . . . . . . . Heaviest Build 242 | 12 29 29 94 43 43 44 102 104 109 114 114 114 115 127 139 139 151 155 155 159 154 159 146 143 162 166 160 169 170 180 179 242 177 Greatest Support 187 | 20 26 26 40 40 40 40 80 80 112 106 106 106 106 106 114 108 108 108 104 120 120 120 118 121 121 125 125 111 109 109 179 179 187 Greatest Overweight (x) 8 | 1 1 1 3 1 1 1 1 1 1 1 1 1 1 1 1 1 1 1 1 1 1 1 1 1 1 1 2 1 1 1 1 1 8 Average Overweight (x) . | . . 1 . 1 1 . . 1 . 1 1 1 . 1 . 1 1 1 1 1 1 1 . 1 1 1 1 1 1 1 . . 1 Largest Inventory Capacity 25 | 8 15 15 25 15 15 15 25 25 25 25 25 25 25 25 25 25 25 25 25 25 25 25 25 25 25 25 25 25 25 25 25 25 25 Average Capacity 23 | 7 8 15 15 15 15 15 22 25 25 25 25 25 25 25 25 25 25 25 25 25 25 25 25 25 25 25 25 25 25 25 25 25 19 Most Carried 25 | 6 9 9 15 15 15 15 25 25 25 25 25 24 25 25 25 25 25 25 25 25 25 25 25 25 25 25 25 25 25 25 25 25 12 Average Carried 22 | 4 7 9 11 15 14 15 20 24 24 24 24 24 24 24 24 24 24 24 25 24 24 22 22 24 24 24 24 24 24 24 24 22 7 Final Capacity 25 | 8 15 15 15 15 15 15 25 25 25 25 25 25 25 25 25 25 25 25 25 25 25 25 25 25 25 25 25 25 25 25 25 25 5 Final Carried 25 | 6 9 9 15 15 15 15 25 24 25 25 24 24 25 25 25 25 25 25 25 25 25 20 25 25 25 24 25 25 25 25 25 13 5 Class Distribution -------------------- 29% | Scavenger-Tank 19% | Scavenger-Skirmisher 15% | Scavenger-Mutant 9% | Tank 7% | Mutant 5% | Gunner 4% | Skirmisher Dominant Class ---------------- Mutant | -10/Materials Mutant | -10/Mines Gunner | -9/Materials Mutant | -9/Mines Mutant | -9/Exiles Skirmisher | -8/Mines Scavenger-Skirmisher | -8/Materials Scavenger-Skirmisher | -8/Garrison Skirmisher | -8/Materials Scavenger-Skirmisher | -7/Factory Scavenger-Tank | -7/Lower Caves Scavenger-Tank | -7/Lower Caves Scavenger-Mutant | -7/Zion Scavenger-Mutant | -6/Proximity Caves Scavenger-Mutant | -6/Factory Tank | -6/Extension Tank | -6/Cetus Scavenger-Skirmisher | -6/Archives Scavenger-Tank | -6/Hub_04(d) Scavenger-Tank | -5/Factory Scavenger-Tank | -5/Upper Caves Scavenger-Tank | -5/Upper Caves Mutant | -5/Zhirov Scavenger-Tank | -4/Proximity Caves Scavenger-Tank | -4/Factory Scavenger-Skirmisher | -4/Upper Caves Scavenger-Mutant | -4/Upper Caves Scavenger-Mutant | -4/Warlord Gunner | -3/Proximity Caves Tank | -3/Research Scavenger-Tank | -2/Research Generator-Mutant | -1/Access Hacker-Gunner | -1/Command Resources | -11 -10 -10 -9 -9 -9 -8 -8 -8 -8 -7 -7 -7 -7 -6 -6 -6 -6 -6 -6 -5 -5 -5 -5 -4 -4 -4 -4 -4 -3 -3 -2 -1 -1 ----------- Run | Jun Mat Min Mat Min Exi Min Mat Gar Mat Fac Low Low Zio Pro Fac Ext Cet Arc Hub Fac Upp Upp Zhi Pro Fac Upp Upp War Pro Res Res Acc Com Matter Collected 13926 | 296 151 . 641 20 10 85 734 856 789 456 104 113 50 212 808 1123 393 636 260 447 23 1065 184 490 532 351 441 437 105 527 164 1104 319 Remotely 3729 | . . . . . . . . . . . . . . . 19 446 287 587 13 . . 518 . 212 105 204 291 41 . 211 . 795 . Salvage Created 17311 | 166 391 . 935 33 . 58 1235 1019 1143 538 93 . . 393 942 830 451 417 354 528 . 1176 184 364 534 296 294 22 40 286 . 3911 678 Parts 844 | 10 32 . 49 7 . 8 86 55 62 35 4 . . 9 34 31 23 27 15 25 . 40 3 13 35 17 8 . 4 16 . 163 33 Haulers Intercepted 9 | . 1 . 1 . . . 1 . 3 1 . . . 1 . . . . . 1 . . . . . . . . . . . . . Recyclers Shooed 9 | . 1 . . . . . 4 . . . . . . . . 1 . . 1 . . . . . . . . . . . . 2 . Parts Field Recycled . | . . . . . . . . . . . . . . . . . . . . . . . . . . . . . . . . . . Retrieved Matter . | . . . . . . . . . . . . . . . . . . . . . . . . . . . . . . . . . . Parts Self-Destructed 98 | . . . . . . . . . . . 4 . 5 12 . . . . . . . 41 2 11 . 17 4 . 2 . . . . Prevented 2 | . . . . . . . . . . . . 2 . . . . . . . . . . . . . . . . . . . . . Kills | -11 -10 -10 -9 -9 -9 -8 -8 -8 -8 -7 -7 -7 -7 -6 -6 -6 -6 -6 -6 -5 -5 -5 -5 -4 -4 -4 -4 -4 -3 -3 -2 -1 -1 ------- Run | Jun Mat Min Mat Min Exi Min Mat Gar Mat Fac Low Low Zio Pro Fac Ext Cet Arc Hub Fac Upp Upp Zhi Pro Fac Upp Upp War Pro Res Res Acc Com Combat Hostiles Destroyed 290 | . 11 . 19 4 . 4 23 23 15 7 2 . . 7 13 21 5 3 5 7 . 20 . 8 9 5 4 1 4 3 . 59 8 Guns 161 | . 7 . 19 . . 1 16 23 15 7 2 . . . 11 12 . . 5 7 . 14 . 3 3 . 3 . 1 . . 6 6 Cannons 87 | . 4 . . . . . . . . . . . . 2 2 4 5 3 . . . 6 . 1 6 5 1 1 . 3 . 42 2 AOE 39 | . . . . 4 . 3 7 . . . . . . 5 . 5 . . . . . . . 4 . . . . 3 . . 8 . Classes Destroyed 20 | 3 4 . 2 . . 1 1 2 1 . . . . 1 1 1 . . . . . . . . . . 1 1 . . . 1 . Worker 19 | 1 . . . . . . . . 1 . . . . . 3 . . . 2 . . . . . 2 . . . . . . 9 1 Builder 17 | . . . . . . . 1 . 3 . . . . . 1 . . . . 1 . . . . 3 . . . . . . 8 . Tunneler 6 | 3 . . . . . . 1 . 1 . . . . . . . . . . . . . . . . . . . . 1 . . . Hauler 9 | . 1 . 1 . . . 1 . 3 1 . . . 1 . . . . . 1 . . . . . . . . . . . . . Recycler 15 | 1 . . 1 . . . 2 . . 1 . . . . 3 1 . . . . . . . . . . . . . 1 . 3 2 Operator 14 | . . . 1 . . . 1 . 2 . . . . . . . . 9 . 1 . . . . . . . . . . . . . Drone 3 | . . . . . . . . . . . . . . 1 . . . . . . . . . . . . . . 2 . . . . Watcher 15 | . 2 . 1 . . . 3 . 3 2 . . . . . 1 . . 1 . . . . . . . . . . . . 2 . Swarmer 58 | . 5 . 2 4 . 3 8 5 . . . . . . 4 3 . . . . . 7 . 1 . . . . . . . 11 5 Saboteur 1 | . . . . . . . . . . . . . . . . . . . . . . . . . . . . . . . . 1 . Grunt 95 | . 6 . 12 . . . 9 7 10 . . . . 5 5 9 1 . 2 3 . 1 . 4 . 3 4 . . . . 13 1 Brawler 9 | . . . . . . . . 1 . . . . . . . . . . . . . 3 . 1 . 1 . . . . . 3 . Duelist 7 | . . . . . . . . . 1 . . . . . . . . . . . . 3 . . . . . . . . . 3 . Sentry 35 | . . . 5 . . . 6 4 3 1 . . . . 1 6 . 3 1 . . 2 . . . . . . . 1 . 2 . Hunter 30 | . . . . . . 1 . 4 1 2 1 . . 1 . . 1 . 2 . . . . 2 . . . . 2 1 . 12 . Programmer 43 | . . . . . . . . 3 . 4 1 . . . 2 . . . . 4 . 4 . . 9 . . . . . . 14 2 Heavy 1 | . . . . . . . . . . . . . . . 1 . . . . . . . . . . . . . . . . . . Behemoth 3 | . . . . . . . . . . . . . . . . 2 . . . . . . . . . 1 . . . . . . . Cetus Guard 3 | . . . . . . . . . . . . . . . . . 3 . . . . . . . . . . . . . . . . Enhanced Grunt 2 | . . . . . . . . . . . . . . . . . 2 . . . . . . . . . . . . . . . . Striker 2 | . . . . . . . . . . . . . . . . . . . . . . . . . . . . 1 . 1 . . . Samaritan 2 | . . . . . . . . . . . . . . . . . . . . . . . . . . . 2 . . . . . . Savage 1 | . . . . . . . . . . . . . . 1 . . . . . . . . . . . . . . . . . . . Butcher 3 | . . . . . . . . . . . . . . 2 . 1 . . . . . . . . . . . . . . . . . Best Kill Streak 14 | 4 3 . 4 6 . 3 6 4 3 4 1 . . 5 6 5 3 3 2 3 . 8 . 4 2 4 4 1 2 2 . 14 6 Combat Bots Only 11 | . 3 . 4 4 . 3 6 4 3 3 1 . . 5 6 5 3 2 2 2 . 8 . 4 2 4 4 1 2 1 . 11 5 Max Kills in Single Turn 6 | 1 1 . 1 4 . 1 4 3 2 1 1 . . 4 2 3 2 1 1 1 . 1 . 2 2 1 1 1 2 2 . 6 2 Gunslinging 1 | . . . . . . . 1 1 . . . . . . . . . . . . . . . . . . . . . . . . . Exploded 4 | . . . . 4 . 1 3 . . . . . . 3 . 3 . . . . . . . 2 . . . . 2 . . 4 . Melee . | . . . . . . . . . . . . . . . . . . . . . . . . . . . . . . . . . . Uniques/NPCs Destroyed . | . . . . . . . . . . . . . . . . . . . . . . . . . . . . . . . . . . Combat | -11 -10 -10 -9 -9 -9 -8 -8 -8 -8 -7 -7 -7 -7 -6 -6 -6 -6 -6 -6 -5 -5 -5 -5 -4 -4 -4 -4 -4 -3 -3 -2 -1 -1 -------- Run | Jun Mat Min Mat Min Exi Min Mat Gar Mat Fac Low Low Zio Pro Fac Ext Cet Arc Hub Fac Upp Upp Zhi Pro Fac Upp Upp War Pro Res Res Acc Com Damage Taken 22462 | . 206 . 863 25 . 150 890 1013 792 687 174 . . 379 966 1335 115 144 145 196 . 2192 . 566 346 706 419 188 170 337 324 6850 2284 Core 2949 | . 19 . 141 . . . 26 132 83 30 . . . . 52 115 . 11 . 27 . 229 . 16 98 237 65 . 10 13 23 466 1156 Absorbed by Shields 5661 | . . . . . . . . 15 . . 63 . . 123 95 282 118 153 153 204 . 544 . 207 54 280 280 45 50 103 52 2840 . Reduced by Siege Mode 257 | . . . . . . . . . . . . . . . . . . . . . . 71 . . 4 21 10 . . . . 95 56 Regen/Repaired (Parts) 964 | . . . . . . . . . 219 113 . . . . . . . . . 441 . . . . . . . 191 . . . . . Core Remaining (%) 81 | 100 . 92 . . . 64 . . 56 . . . . 95 . . . . 79 . . . . 72 . . . . 58 99 98 . . Volleys Fired 900 | 12 26 . 51 1 . 7 56 71 57 28 8 . . 18 43 61 15 35 23 27 . 55 4 17 24 16 29 6 9 13 3 158 27 Largest 4 | 2 2 . 3 1 . 3 3 3 3 3 3 . . 3 3 3 3 3 3 3 . 3 1 3 4 4 4 4 4 4 1 4 3 Hottest 445 | 70 120 . 69 30 . 69 71 84 84 120 84 . . 137 196 120 240 137 105 105 . 127 90 108 260 284 184 240 184 184 105 445 353 Shots Fired 2386 | 24 52 . 153 1 . 15 159 201 171 81 23 3 . 27 128 161 45 89 63 62 . 158 5 42 81 47 72 15 14 50 3 390 51 Gun 1622 | 24 38 . 153 . . 12 156 199 171 79 23 3 . 9 112 99 2 65 63 62 . 120 . 25 41 16 47 7 6 24 . 48 18 Cannon 721 | . 14 . . . . . . 2 . 2 . . . 12 16 57 43 24 . . . 38 5 13 40 31 25 6 2 26 1 335 29 Launcher 39 | . . . . 1 . 3 3 . . . . . . 6 . 5 . . . . . . . 4 . . . . 6 . . 7 4 Special 4 | . . . . . . . . . . . . . . . . . . . . . . . . . . . . 2 . . 2 . . Kinetic 1795 | 12 27 . 153 . . 12 156 201 171 79 23 3 . 6 84 150 43 89 60 62 . 158 . 38 36 25 72 12 8 50 . 65 . Thermal 526 | 12 25 . . . . . . . . 2 . . . 15 44 6 2 . 3 . . . 5 . 45 22 . 1 . . 1 296 47 Explosive 39 | . . . . 1 . 3 3 . . . . . . 6 . 5 . . . . . . . 4 . . . . 6 . . 7 4 Electromagnetic . | . . . . . . . . . . . . . . . . . . . . . . . . . . . . . . . . . . Entropic 22 | . . . . . . . . . . . . . . . . . . . . . . . . . . . . . . . . 22 . Robot Hit Streak 41 | 9 10 . 15 . . 7 26 33 20 13 7 3 . 8 11 41 4 7 6 10 . 18 6 14 8 13 14 14 2 12 2 30 13 Robot Miss Streak 7 | 4 6 . 4 . . 1 4 2 3 1 3 1 . 1 5 7 2 5 3 2 . 4 . 4 2 1 2 2 1 4 . 3 2 Penetration Max 1 | . . . . . . . . 1 1 . . . . . 1 . . 1 . 1 . 1 . . 1 . 1 1 . 1 . 1 . Secondary Targets 19 | . . . 2 . . . 2 4 3 . . . . . 1 . . . . 1 . 5 . . . . . . . . . . 1 Max Gunslinging Chain 1 | . . . 1 . . . 1 1 1 . . . . . 1 . . . . 1 . 1 . . . . . . . . . . 1 Shots Hit Robots 1442 | 16 31 . 110 . . 13 114 101 116 58 15 1 . 14 91 121 24 51 15 28 . 82 5 28 40 30 43 9 7 31 2 225 21 Core Hits 742 | 6 15 . 36 4 . 5 56 44 45 20 4 . . 34 32 90 14 24 13 15 . 38 1 15 18 14 15 4 8 14 . 142 16 Critical Kills 37 | 1 . . . . . . 2 . 1 1 . . . . 1 . 5 2 2 6 . 11 . 3 . . . . . . . 2 . Critical Parts Destroyed 42 | . . . 1 . . . 2 . 1 . . . . . 3 1 2 10 2 3 . 13 . 2 2 . . . . . . . . Critical Strikes 110 | 1 1 . 1 . . . 4 . 2 1 . . . . 4 4 9 13 4 9 . 25 . 5 2 1 2 1 . 1 . 20 . Burn 1 | . 1 . . . . . . . . . . . . . . . . . . . . . . . . . . . . . . . . Meltdown 2 | . . . . . . . . . . . . . . . . . . . . . . . . . . . . . . . . 2 . Destroy 79 | 1 . . 1 . . . 4 . 2 1 . . . . 2 1 9 13 4 9 . 25 . 5 2 . . . . . . . . Blast 13 | . . . . . . . . . . . . . . . . 3 . . . . . . . . . 1 2 1 . 1 . 5 . Smash 2 | . . . . . . . . . . . . . . . 2 . . . . . . . . . . . . . . . . . . Sunder 13 | . . . . . . . . . . . . . . . . . . . . . . . . . . . . . . . . 13 . Melee Attacks 33 | . . . . . . . . . . . . . . . 18 . . . . . . . . . . . . . . . . . 15 Impact 18 | . . . . . . . . . . . . . . . 18 . . . . . . . . . . . . . . . . . . Slashing . | . . . . . . . . . . . . . . . . . . . . . . . . . . . . . . . . . . Piercing 15 | . . . . . . . . . . . . . . . . . . . . . . . . . . . . . . . . . 15 Sneak Attacks 5 | . . . . . . . . . . . . . . . 5 . . . . . . . . . . . . . . . . . . Combat Hostiles . | . . . . . . . . . . . . . . . . . . . . . . . . . . . . . . . . . . Follow-up Attacks . | . . . . . . . . . . . . . . . . . . . . . . . . . . . . . . . . . . Damage Inflicted 45463 | 198 508 . 1825 168 . 315 2147 1914 2506 1291 313 20 . 1672 2665 4122 954 1667 451 969 16 2462 147 1139 1523 919 1260 241 734 939 . 11605 773 Guns 22805 | 198 320 . 1783 . . 115 1815 1913 2462 1291 313 20 . 120 1736 1929 . 1119 316 969 . 1996 . 295 759 278 887 80 50 396 . 1187 458 Cannons 16579 | . 160 . . . . . . . . . . . . 416 447 1478 954 538 . . . 466 147 235 681 641 373 161 30 543 . 9000 309 Explosions 5227 | . . . . 168 . 200 312 . . . . . . 1136 . 706 . . 98 . . . . 599 . . . . 654 . . 1354 . Melee 469 | . . . . . . . . . . . . . . . 469 . . . . . . . . . . . . . . . . . . Ramming 383 | . 28 . 42 . . . 20 1 44 . . . . . 13 9 . 10 37 . 16 . . 10 83 . . . . . . 64 6 Kinetic 26925 | 83 255 . 1783 . . 115 1815 1913 2462 1291 313 20 . 53 1566 3407 954 1657 316 969 . 2462 . 530 500 564 1260 241 80 939 . 1377 . Thermal 10765 | 115 225 . . . . . . . . . . . . 483 617 . . . . . . . 147 . 940 355 . . . . . 7116 767 Explosive 5129 | . . . . 168 . 200 312 . . . . . . 1136 . 706 . . . . . . . 599 . . . . 654 . . 1354 . Electromagnetic 98 | . . . . . . . . . . . . . . . . . . . 98 . . . . . . . . . . . . . . Impact 469 | . . . . . . . . . . . . . . . 469 . . . . . . . . . . . . . . . . . . Slashing . | . . . . . . . . . . . . . . . . . . . . . . . . . . . . . . . . . . Piercing . | . . . . . . . . . . . . . . . . . . . . . . . . . . . . . . . . . . Entropic 1694 | . . . . . . . . . . . . . . . . . . . . . . . . . . . . . . . . 1694 . Highest Corruption 50 | . . . . . . . . . . 3 5 5 5 1 2 2 6 17 . 2 2 4 4 9 3 3 3 3 . . . 50 50 Average Corruption 7 | . . . . . . . . . . 1 3 5 5 1 1 2 4 9 . 1 2 3 4 4 2 3 3 3 . . . 18 50 Corruption Purged 17 | . . . . . . . . . . . . . . . . . . 17 . . . . . . . . . . . . . . . Corruption Blocked 26 | . . . . . . . . . . . . . . . . . . . . . . . . . . . . 6 . . 20 . . Effects 439 | . . . . . . . . . . 9 18 15 2 1 12 29 8 12 . 17 10 37 12 18 25 25 21 2 . . . 92 74 Message Errors 105 | . . . . . . . . . . 2 7 5 2 1 4 8 2 3 . 6 2 10 4 3 5 6 5 1 . . . 17 12 Matter Fused 96 | . . . . . . . . . . . 3 3 . . 2 9 1 4 . 2 5 10 2 7 5 10 4 1 . . . 20 8 Heat Flow Errors 43 | . . . . . . . . . . 1 1 . . . 2 2 2 1 . 3 . 3 . 3 2 2 3 . . . . 11 7 Energy Discharges 46 | . . . . . . . . . . 2 1 1 . . . 3 1 1 . 1 1 5 2 2 4 3 4 . . . . 7 8 Parts Rejected 4 | . . . . . . . . . . . . . . . . . . . . . . . . . . . 1 . . . . 2 1 Parts Fused 9 | . . . . . . . . . . . 2 1 . . 1 1 . . . 1 . . 1 1 . . . . . . . 1 . Data Loss (minor) 45 | . . . . . . . . . . 1 1 2 . . 1 3 1 . . 1 1 2 2 1 7 1 1 . . . . 9 11 Data Loss (major) 17 | . . . . . . . . . . 1 1 . . . 1 1 . . . 2 . 1 . . . 2 . . . . . 5 3 Misfires 16 | . . . . . . . . . . 1 . 3 . . . 1 1 1 . . . 3 1 . . 1 1 . . . . 1 2 Alerts 11 | . . . . . . . . . . 1 1 . . . 1 . . . . 1 1 . . . 2 . 1 . . . . . 3 Misdirections 15 | . . . . . . . . . . . . . . . . . . . . . . . . . . . . . . . . 6 9 Weapon Failures 32 | . . . . . . . . . . . 1 . . . . 1 . 2 . . . 3 . 1 . . 1 . . . . 13 10 Overload Shots 4 | . . . . . . . . . . . . . . . . . 1 . . . . . . . . . . 1 . . . 2 . Overflow Damage 922 | . 15 . . . . 27 . . . . . . . 9 286 40 16 8 . . 6 . 34 23 70 . . . 24 33 . 308 23 Projectiles 548 | . 15 . . . . . . . . . . . . 9 67 40 16 8 . . . . 34 23 59 . . . . 33 . 244 . Explosions 138 | . . . . . . 27 . . . . . . . . . . . . . . . . . . . . . . 24 . . 64 23 Melee 236 | . . . . . . . . . . . . . . . 219 . . . . . 6 . . . 11 . . . . . . . . Knockbacks 41 | . . . 1 . . . . . . . . . . . 7 5 6 . . . . 2 . . 2 4 3 3 . 1 . 7 . Impact 6 | . . . 1 . . . . . . . . . . . 5 . . . . . . . . . . . . . . . . . . Kinetic 32 | . . . . . . . . . . . . . . . 2 4 6 . . . . 2 . . 2 4 2 2 . 1 . 7 . Secondary 3 | . . . . . . . . . . . . . . . . 1 . . . . . . . . . . 1 1 . . . . . Self-Inflicted Damage 351 | . . . . 18 . 30 26 . . . . . . . . . . . 70 . . . . . . . . . . . . 99 108 Shots 8 | . . . . 1 . 1 1 . . . . . . . . . . . 1 . . . . . . . . . . . . 2 2 Rammed 23 | . . . 2 . . . 2 1 2 . . . . . 1 1 . 1 3 . 1 . . 1 1 . . . . . . 5 2 Targets Rammed 40 | . 5 . 10 . . . 2 1 3 . . . . . 1 1 . 1 4 . 1 . . 1 2 . . . . . . 6 2 Kicked 13 | . 5 . 8 . . . . . . . . . . . . . . . . . . . . . . . . . . . . . . Crushed 4 | . . . . . . . . . 1 . . . . . . . . . 1 . . . . . 1 . . . . . . 1 . Highest Temperature 613 | 54 300 . 122 . . 55 221 81 240 171 254 . . 364 408 290 347 344 269 277 . 357 . 218 265 613 126 112 . . . 450 483 Average Temperature 78 | 21 72 . 29 . . 24 55 18 71 38 68 . . 112 102 91 50 89 71 85 . 132 . 108 66 203 30 72 . . . 103 144 Received Heat Transfer 3382 | . 54 . 405 . . . 333 233 324 54 . . . 50 266 459 13 20 19 48 . 186 . 68 . 67 168 24 . . 7 440 144 Effects 16 | . . . . . . . 2 . . . . . . 1 . . . . . . . 3 . . . 3 . . . . . 2 5 Shutdowns 8 | . . . . . . . . . . . . . . . . . . . . . . 2 . . . 2 . . . . . 2 2 Interference 4 | . . . . . . . 2 . . . . . . . . . . . . . . . . . . . . . . . . . 2 Matter Decay 1 | . . . . . . . . . . . . . . . . . . . . . . 1 . . . . . . . . . . . Short Circuit 1 | . . . . . . . . . . . . . . 1 . . . . . . . . . . . . . . . . . . . Damage (minor) 1 | . . . . . . . . . . . . . . . . . . . . . . . . . . . . . . . . . 1 Damage (core) 1 | . . . . . . . . . . . . . . . . . . . . . . . . . . 1 . . . . . . . Siege Activations 27 | . . . . . . . . . . . . . . . . . . . . . . 2 . . 8 2 1 . . . . 12 2 Total Turns 379 | . . . . . . . . . . . . . . . . . . . . . . 65 . . 40 29 14 . . . . 213 18 Longest Duration 59 | . . . . . . . . . . . . . . . . . . . . . . 59 . . 16 27 14 . . . . 49 15 Robots Corrupted . | . . . . . . . . . . . . . . . . . . . . . . . . . . . . . . . . . . Combat Hostiles . | . . . . . . . . . . . . . . . . . . . . . . . . . . . . . . . . . . Parts Fried 10 | . . . . . . . . . . . . . . . 10 . . . . . . . . . . . . . . . . . . Impact Corruptions 10 | . . . . . . . . . . . . . . . 8 . . . . . 1 . . . 1 . . . . . . . . Robots Melted 3 | . . . . . . . . . . . . . . . . . . . . . . . . . . . . . . . . 3 . Combat Hostiles 3 | . . . . . . . . . . . . . . . . . . . . . . . . . . . . . . . . 3 . Parts Melted 38 | 1 3 . . . . . . . . . . . . 4 . . . . . . . . . . 4 . . . . . . 25 1 Heat Transferred 12112 | 333 592 . . . . . . . . . . . . 1071 1051 . . . . . . . 148 . 925 407 . . . . . 6771 814 Parts Sabotaged 5 | . . . . . . . . . . . . . . . . . . . . . . 2 . . . . . . . . . 3 . Parts Stolen . | . . . . . . . . . . . . . . . . . . . . . . . . . . . . . . . . . . Parts Stripped . | . . . . . . . . . . . . . . . . . . . . . . . . . . . . . . . . . . Power Chain Reactions . | . . . . . . . . . . . . . . . . . . . . . . . . . . . . . . . . . . Missiles Intercepted . | . . . . . . . . . . . . . . . . . . . . . . . . . . . . . . . . . . Alert | -11 -10 -10 -9 -9 -9 -8 -8 -8 -8 -7 -7 -7 -7 -6 -6 -6 -6 -6 -6 -5 -5 -5 -5 -4 -4 -4 -4 -4 -3 -3 -2 -1 -1 ------- Run | Jun Mat Min Mat Min Exi Min Mat Gar Mat Fac Low Low Zio Pro Fac Ext Cet Arc Hub Fac Upp Upp Zhi Pro Fac Upp Upp War Pro Res Res Acc Com Peak Influence 1571 | 25 285 86 426 222 . 142 435 1551 999 380 . . . . 334 387 720 443 452 191 . . . . 127 . . . . 129 3 1571 1325 Initial 934 | . 16 86 33 121 . . 55 209 755 350 . . . . 300 94 108 208 89 166 . . . . 50 . . . . 33 . 1 934 Average 320 | 8 166 86 174 217 . 98 203 773 836 173 . . . . 184 152 369 339 124 83 . . . . 45 . . . . 40 . 702 1024 Maximum Alert Level 4 | . 1 . 2 1 . . 2 4 3 1 . . . . 1 1 3 2 2 . . . . . . . . . . . . 4 4 Low Security (%) 56 | 100 71 100 65 4 . 100 40 . . 64 . . . . 48 73 22 . 89 100 . . . . 100 . . . . 100 100 37 . Level 1 19 | . 28 . 30 95 . . 51 24 . 35 . . . . 51 26 43 62 3 . . . . . . . . . . . . 3 . Level 2 5 | . . . 3 . . . 8 26 5 . . . . . . . 16 37 7 . . . . . . . . . . . . 12 . Level 3 12 | . . . . . . . . 30 94 . . . . . . . 17 . . . . . . . . . . . . . . 10 82 Level 4 5 | . . . . . . . . 18 . . . . . . . . . . . . . . . . . . . . . . . 36 17 Level 5 . | . . . . . . . . . . . . . . . . . . . . . . . . . . . . . . . . . . High Security . | . . . . . . . . . . . . . . . . . . . . . . . . . . . . . . . . . . Max Security . | . . . . . . . . . . . . . . . . . . . . . . . . . . . . . . . . . . Squads Dispatched 76 | . 4 . 4 . . . 6 . 6 6 . . . . 4 3 . . 4 5 . 1 . 1 6 . . . . 2 1 17 6 Investigation 20 | . 2 . 1 . . . 2 . 4 1 . . . . 1 2 . . 3 1 . . . . . . . . . 2 . 1 . Extermination 24 | . . . . . . . . . . 5 . . . . 3 . . . 1 3 . . . . 5 . . . . . . 4 3 Reinforcement 21 | . 2 . 3 . . . 2 . 2 . . . . . . 1 . . . 1 . . . . 1 . . . . . 1 5 3 Assault 9 | . . . . . . . . . . . . . . . . . . . . . . 1 . 1 . . . . . . . 7 . Garrison 2 | . . . . . . . 2 . . . . . . . . . . . . . . . . . . . . . . . . . . Intercept . | . . . . . . . . . . . . . . . . . . . . . . . . . . . . . . . . . . Searches Triggered . | . . . . . . . . . . . . . . . . . . . . . . . . . . . . . . . . . . Construction Impeded 3 | . . . . . . . 1 . . . . . . . . . . . . . . . . . . . . . . . . 2 . Haulers Reinforced 2 | . . . . . . . . . . . . . . . . . . . . 1 . . . . . . . . . . . 1 . Active Scanning Responses . | . . . . . . . . . . . . . . . . . . . . . . . . . . . . . . . . . . Cargo Convoy Interrupts . | . . . . . . . . . . . . . . . . . . . . . . . . . . . . . . . . . . Stealth | -11 -10 -10 -9 -9 -9 -8 -8 -8 -8 -7 -7 -7 -7 -6 -6 -6 -6 -6 -6 -5 -5 -5 -5 -4 -4 -4 -4 -4 -3 -3 -2 -1 -1 --------- Run | Jun Mat Min Mat Min Exi Min Mat Gar Mat Fac Low Low Zio Pro Fac Ext Cet Arc Hub Fac Upp Upp Zhi Pro Fac Upp Upp War Pro Res Res Acc Com Distress Signals 30 | . . . 4 . . . 2 . 2 . . . . 1 2 . 2 . . . . . . . . . . . . 6 5 4 2 Communications Jammed 186 | . . . . . . . . . . . . . . . 48 15 . . . . . . . . . . . 106 2 . . 14 1 Distress Signals 182 | . . . . . . . . . . . . . . . 46 15 . . . . . . . . . . . 106 . . . 14 1 Times Spotted 546 | . 19 . 31 4 . 4 30 31 24 9 2 . . 12 34 29 19 28 12 8 . 21 . 19 12 5 4 46 4 14 8 83 34 Peak Tracking Total 15 | . 3 . 7 4 . 3 5 4 6 3 1 . . 5 8 6 7 2 3 2 . 7 . 11 2 4 3 15 2 5 7 9 14 Tactical Retreats 33 | . 2 . 1 . . . 1 1 2 . . . . . 3 1 . . . . . . . . 1 1 . 5 . . . 5 10 Traps | -11 -10 -10 -9 -9 -9 -8 -8 -8 -8 -7 -7 -7 -7 -6 -6 -6 -6 -6 -6 -5 -5 -5 -5 -4 -4 -4 -4 -4 -3 -3 -2 -1 -1 ------- Run | Jun Mat Min Mat Min Exi Min Mat Gar Mat Fac Low Low Zio Pro Fac Ext Cet Arc Hub Fac Upp Upp Zhi Pro Fac Upp Upp War Pro Res Res Acc Com Traps Triggered 26 | . 1 . . . . . . 12 2 . . . . . . 7 . . . 1 . . . . . . . . . 1 . 1 1 Indirectly . | . . . . . . . . . . . . . . . . . . . . . . . . . . . . . . . . . . Trap Hack Attempts . | . . . . . . . . . . . . . . . . . . . . . . . . . . . . . . . . . . Triggered . | . . . . . . . . . . . . . . . . . . . . . . . . . . . . . . . . . . Disarmed . | . . . . . . . . . . . . . . . . . . . . . . . . . . . . . . . . . . Reprogrammed . | . . . . . . . . . . . . . . . . . . . . . . . . . . . . . . . . . . Reused . | . . . . . . . . . . . . . . . . . . . . . . . . . . . . . . . . . . Traps Extracted . | . . . . . . . . . . . . . . . . . . . . . . . . . . . . . . . . . . Installed . | . . . . . . . . . . . . . . . . . . . . . . . . . . . . . . . . . . Triggered 29 | . . . . . . . . . . . . 1 . 2 . . . . . . . . . . . . . 26 . . . . . Machines | -11 -10 -10 -9 -9 -9 -8 -8 -8 -8 -7 -7 -7 -7 -6 -6 -6 -6 -6 -6 -5 -5 -5 -5 -4 -4 -4 -4 -4 -3 -3 -2 -1 -1 ---------- Run | Jun Mat Min Mat Min Exi Min Mat Gar Mat Fac Low Low Zio Pro Fac Ext Cet Arc Hub Fac Upp Upp Zhi Pro Fac Upp Upp War Pro Res Res Acc Com Machines Disabled 42 | . . . 1 . . . 1 9 1 . . . . . . 4 2 3 10 . . 4 1 . . . . 1 . 1 . 4 . Max in Single Turn 7 | . . . 1 . . . . 1 1 . . . . . . 1 1 1 7 . . 1 1 . . . . 1 . 1 . 1 . Garrison Access 2 | . . . . . . . . . . . . . . . . . . . 1 . . . . . . . . . . 1 . . . Garrison Relay 6 | . . . . . . . . 6 . . . . . . . . . . . . . . . . . . . . . . . . . Network Hub 2 | . . . . . . . . . . . . . . . . . . . 2 . . . . . . . . . . . . . . Machines Repaired 1 | . . . . . . . . . . . . . . . . . . . 1 . . . . . . . . . . . . . . Machines Sabotaged . | . . . . . . . . . . . . . . . . . . . . . . . . . . . . . . . . . . Overloaded Fab Kills . | . . . . . . . . . . . . . . . . . . . . . . . . . . . . . . . . . . Hacking | -11 -10 -10 -9 -9 -9 -8 -8 -8 -8 -7 -7 -7 -7 -6 -6 -6 -6 -6 -6 -5 -5 -5 -5 -4 -4 -4 -4 -4 -3 -3 -2 -1 -1 --------- Run | Jun Mat Min Mat Min Exi Min Mat Gar Mat Fac Low Low Zio Pro Fac Ext Cet Arc Hub Fac Upp Upp Zhi Pro Fac Upp Upp War Pro Res Res Acc Com Machines Accessed 83 | . 7 . 3 . 1 . 7 3 3 4 1 . . . 9 6 1 . 7 5 . 3 4 . 4 2 . 1 . . 1 4 7 Terminals 52 | . 6 . 2 . . . 4 3 2 . . . . . 5 6 1 . 5 2 . . . . 3 1 . . . . 1 4 7 Fabricators 4 | . . . . . . . . . . 1 . . . . 1 . . . . 1 . . . . 1 . . . . . . . . Repair Stations 8 | . . . . . . . 1 . 1 3 . . . . 1 . . . . 2 . . . . . . . . . . . . . Recycling Units 3 | . 1 . 1 . . . 1 . . . . . . . . . . . . . . . . . . . . . . . . . . Scanalyzers 2 | . . . . . . . . . . . . . . . 2 . . . . . . . . . . . . . . . . . . Garrison Access 3 | . . . . . . . 1 . . . . . . . . . . . 2 . . . . . . . . . . . . . . Total Hacks 250 | . 22 . 9 . 1 . 17 7 13 10 1 . . . 22 15 4 . 18 24 . 3 17 . 13 3 . 1 . . 6 11 33 Successful 118 | . 10 . 5 . 1 . 11 2 7 4 1 . . . 10 4 . . 8 13 . 3 17 . 3 3 . 1 . . 3 4 8 Failed 131 | . 11 . 4 . . . 6 5 6 6 . . . . 12 11 4 . 10 11 . . . . 10 . . . . . 3 7 25 Catastrophic 36 | . 2 . 2 . . . . 2 1 1 . . . . 4 3 . . 2 3 . . . . 4 . . . . . 3 2 7 Database Lockouts 1 | . 1 . . . . . . . . . . . . . . . . . . . . . . . . . . . . . . . . Manual 133 | . 19 . 10 . 1 . 13 1 8 . . . . . 12 . 1 . 12 10 . . . . 5 . . . . . 6 4 31 Terminals 173 | . 21 . 8 . . . 11 7 8 . . . . . 12 15 4 . 15 9 . . . . 11 2 . . . . 6 11 33 Fabricators 11 | . . . . . . . . . . 2 . . . . 4 . . . . 3 . . . . 2 . . . . . . . . Repair Stations 30 | . . . . . . . 2 . 5 8 . . . . 3 . . . . 12 . . . . . . . . . . . . . Recycling Units 3 | . 1 . 1 . . . 1 . . . . . . . . . . . . . . . . . . . . . . . . . . Scanalyzers 3 | . . . . . . . . . . . . . . . 3 . . . . . . . . . . . . . . . . . . Garrison Access 6 | . . . . . . . 3 . . . . . . . . . . . 3 . . . . . . . . . . . . . . Terminal Hacks 60 | . 5 . 2 . 1 . 2 2 1 . 1 . . . 3 4 . . 2 2 . 3 17 . 2 3 . 1 . . 2 4 3 Record 10 | . . . . . . . . . . . . . . . . . . . . . . 1 5 . . 2 . . . . . 2 . Part Schematic 5 | . . . . . . . 1 . . . . . . . . . . . . . . . 4 . . . . . . . . . . Robot Analysis 8 | . 1 . 2 . . . 1 . . . . . . . . . . . . . . . 4 . . . . . . . . . . Prototype ID Bank 6 | . 1 . . . . . . . . . . . . . . . . . . . . . 4 . 1 . . . . . . . . Open Door 12 | . . . . . . . . 1 . . 1 . . . 1 4 . . . . . 2 . . . 1 . 1 . . . 1 . Level Access Points 1 | . . . . . . . . . . . . . . . . . . . . . . . . . . . . . . . 1 . . Branch Access Points 3 | . . . . . . . . . . . . . . . . . . . . 1 . . . . 1 . . . . . . 1 . Emergency Access Points 1 | . . . . . . . . 1 . . . . . . . . . . . . . . . . . . . . . . . . . Terminal Index 1 | . . . . . . . . . . . . . . . . . . . . . . . . . . . . . . . . . 1 Alert Level 2 | . . . . . . . . . . . . . . . . . . . . 1 . . . . . . . . . . . . 1 Unreport Threat 3 | . . . . . . . . . 1 . . . . . 1 . . . . . . . . . . . . . . . 1 . . Patrol Status 1 | . 1 . . . . . . . . . . . . . . . . . . . . . . . . . . . . . . . . Recall Extermination 1 | . . . . . . . . . . . . . . . 1 . . . . . . . . . . . . . . . . . . Zone Layout 5 | . 2 . . . . . . . . . . . . . . . . . 2 . . . . . . . . . . . . . 1 EX-Prototype ID Bank 1 | . . . . . 1 . . . . . . . . . . . . . . . . . . . . . . . . . . . . Fabricator Hacks 3 | . . . . . . . . . . 1 . . . . 1 . . . . 1 . . . . . . . . . . . . . Network Status 3 | . . . . . . . . . . 1 . . . . 1 . . . . 1 . . . . . . . . . . . . . Repair Station Hacks 16 | . . . . . . . 1 . 4 3 . . . . 1 . . . . 7 . . . . . . . . . . . . . Scan Component 10 | . . . . . . . 1 . 2 2 . . . . 1 . . . . 4 . . . . . . . . . . . . . Repair 6 | . . . . . . . . . 2 1 . . . . . . . . . 3 . . . . . . . . . . . . . Recycling Unit Hacks . | . . . . . . . . . . . . . . . . . . . . . . . . . . . . . . . . . . Scanalyzer 2 | . . . . . . . . . . . . . . . 2 . . . . . . . . . . . . . . . . . . Insert Component 1 | . . . . . . . . . . . . . . . 1 . . . . . . . . . . . . . . . . . . Analyze 1 | . . . . . . . . . . . . . . . 1 . . . . . . . . . . . . . . . . . . Garrison Access Hacks 2 | . . . . . . . 1 . . . . . . . . . . . 1 . . . . . . . . . . . . . . Unlock Access 1 | . . . . . . . 1 . . . . . . . . . . . . . . . . . . . . . . . . . . Seal Access 1 | . . . . . . . . . . . . . . . . . . . 1 . . . . . . . . . . . . . . Unauthorized Hacks 35 | . 5 . 3 . . . 7 . 2 . . . . . 3 . . . 5 3 . . . . 1 . . . . . 1 . 5 Terminals 27 | . 4 . 2 . . . 4 . 2 . . . . . 3 . . . 5 1 . . . . . . . . . . 1 . 5 Botnet 24 | . 4 . 2 . . . 4 . 2 . . . . . 3 . . . 2 1 . . . . . . . . . . 1 . 5 Sabotage 3 | . . . . . . . . . . . . . . . . . . . 3 . . . . . . . . . . . . . . Fabricators 3 | . . . . . . . . . . . . . . . . . . . . 2 . . . . 1 . . . . . . . . Fabnet 2 | . . . . . . . . . . . . . . . . . . . . 1 . . . . 1 . . . . . . . . Download 1 | . . . . . . . . . . . . . . . . . . . . 1 . . . . . . . . . . . . . Repair Stations . | . . . . . . . . . . . . . . . . . . . . . . . . . . . . . . . . . . Recycling Units 3 | . 1 . 1 . . . 1 . . . . . . . . . . . . . . . . . . . . . . . . . . Tunnel 3 | . 1 . 1 . . . 1 . . . . . . . . . . . . . . . . . . . . . . . . . . Scanalyzers . | . . . . . . . . . . . . . . . . . . . . . . . . . . . . . . . . . . Garrison Access 2 | . . . . . . . 2 . . . . . . . . . . . . . . . . . . . . . . . . . . Reprogram 1 | . . . . . . . 1 . . . . . . . . . . . . . . . . . . . . . . . . . . Watchers 1 | . . . . . . . 1 . . . . . . . . . . . . . . . . . . . . . . . . . . Data Cores Recovered 3 | . . . . . . . 1 . . . . . . . . . . . 1 1 . . . . . . . . . . . . . Used 2 | . . . . . . . . . . . . . . . . . . . 1 1 . . . . . . . . . . . . . Hacking Detections 58 | . 5 . 2 . . . 5 3 3 4 . . . . 8 4 2 . 6 4 . . . . 3 . . . . . 1 4 4 Full Trace Events 7 | . . . . . . . . . 2 1 . . . . 1 2 . . . . . . . . . . . . . . . 1 . Feedback Events . | . . . . . . . . . . . . . . . . . . . . . . . . . . . . . . . . . . Feedback Blocked . | . . . . . . . . . . . . . . . . . . . . . . . . . . . . . . . . . . Robot Schematics Acquired . | . . . . . . . . . . . . . . . . . . . . . . . . . . . . . . . . . . Robots Built . | . . . . . . . . . . . . . . . . . . . . . . . . . . . . . . . . . . Authchips . | . . . . . . . . . . . . . . . . . . . . . . . . . . . . . . . . . . Time . | . . . . . . . . . . . . . . . . . . . . . . . . . . . . . . . . . . Total Robot Build Rating . | . . . . . . . . . . . . . . . . . . . . . . . . . . . . . . . . . . Part Schematics Acquired 7 | . . . . . . . 1 . . . . . . . 1 . . . . 1 . . 4 . . . . . . . . . . Parts Built . | . . . . . . . . . . . . . . . . . . . . . . . . . . . . . . . . . . Authchips . | . . . . . . . . . . . . . . . . . . . . . . . . . . . . . . . . . . Time . | . . . . . . . . . . . . . . . . . . . . . . . . . . . . . . . . . . Total Part Build Rating . | . . . . . . . . . . . . . . . . . . . . . . . . . . . . . . . . . . Parts Repaired 6 | . . . . . . . . . 2 1 . . . . . . . . . 3 . . . . . . . . . . . . . Time 227 | . . . . . . . . . 82 44 . . . . . . . . . 101 . . . . . . . . . . . . . Parts Recycled . | . . . . . . . . . . . . . . . . . . . . . . . . . . . . . . . . . . Recycled Matter . | . . . . . . . . . . . . . . . . . . . . . . . . . . . . . . . . . . Retrieved Matter . | . . . . . . . . . . . . . . . . . . . . . . . . . . . . . . . . . . Retrieved Components . | . . . . . . . . . . . . . . . . . . . . . . . . . . . . . . . . . . Parts Scanalyzed 1 | . . . . . . . . . . . . . . . 1 . . . . . . . . . . . . . . . . . . Part Schematics Acquired 1 | . . . . . . . . . . . . . . . 1 . . . . . . . . . . . . . . . . . . Parts Damaged 1 | . . . . . . . . . . . . . . . 1 . . . . . . . . . . . . . . . . . . Bothacking | -11 -10 -10 -9 -9 -9 -8 -8 -8 -8 -7 -7 -7 -7 -6 -6 -6 -6 -6 -6 -5 -5 -5 -5 -4 -4 -4 -4 -4 -3 -3 -2 -1 -1 ------------ Run | Jun Mat Min Mat Min Exi Min Mat Gar Mat Fac Low Low Zio Pro Fac Ext Cet Arc Hub Fac Upp Upp Zhi Pro Fac Upp Upp War Pro Res Res Acc Com Used RIF Installer . | . . . . . . . . . . . . . . . . . . . . . . . . . . . . . . . . . . Robots Hacked 11 | . . . . . . . . . . . . . . . . . . . . . . . . . . . . 1 1 3 6 . . Non-combat . | . . . . . . . . . . . . . . . . . . . . . . . . . . . . . . . . . . Combat 11 | . . . . . . . . . . . . . . . . . . . . . . . . . . . . 1 1 3 6 . . Robot Hacks Applied 3 | . . . . . . . . . . . . . . . . . . . . . . . . . . . . 1 . . 2 . . parse_system 3 | . . . . . . . . . . . . . . . . . . . . . . . . . . . . 1 . . 2 . . Relay Couplers Released 31 | . . . . . . . . 24 . . . . . . . . . . . . . . . . . . . . . 3 . 4 . Machine Destruction 27 | . . . . . . . . 24 . . . . . . . . . . . . . . . . . . . . . 3 . . . Programmers 4 | . . . . . . . . . . . . . . . . . . . . . . . . . . . . . . . . 4 . Fabnet Peak Effective % 3 | . . . . . . . . . . . . . . . . . . . . . . . . . . . . . 3 3 1 . . Autooverrided 9 | . . . . . . . . . . . . . . . . . . . . . . . . . . . . . 1 3 5 . . Robots Rewired 20 | . . . . . . . . 9 . . . . . . . 10 . . . . . 1 . . . . . . . . . . . Allies Hacked . | . . . . . . . . . . . . . . . . . . . . . . . . . . . . . . . . . . Hacks Repelled . | . . . . . . . . . . . . . . . . . . . . . . . . . . . . . . . . . . Allies | -11 -10 -10 -9 -9 -9 -8 -8 -8 -8 -7 -7 -7 -7 -6 -6 -6 -6 -6 -6 -5 -5 -5 -5 -4 -4 -4 -4 -4 -3 -3 -2 -1 -1 -------- Run | Jun Mat Min Mat Min Exi Min Mat Gar Mat Fac Low Low Zio Pro Fac Ext Cet Arc Hub Fac Upp Upp Zhi Pro Fac Upp Upp War Pro Res Res Acc Com Total Allies 51 | . . 2 . . . . 2 9 . . . . 5 . . 18 5 . . . . 1 . . . . . . 1 3 5 . . Largest Group 8 | . . 2 2 . . . 2 6 3 . . . 5 5 1 8 6 3 1 . . 1 1 1 . . . . 1 1 2 . . Highest-Rated Group 577 | . . 42 42 . . . 32 134 41 . . . 115 115 20 305 577 337 96 . . 49 49 49 . . . . 48 56 99 . . Highest-Rated Ally 159 | . . 31 31 . . . 16 25 21 . . . 25 25 20 159 159 152 96 . . 49 49 49 . . . . 48 56 69 . . Total Orders 3 | . . . . . . . . . . . . . . . . . 1 . . . . . 2 . . . . . . . . . . STAY 2 | . . . . . . . . . . . . . . . . . 1 . . . . . 1 . . . . . . . . . . FOLLOW 1 | . . . . . . . . . . . . . . . . . . . . . . . 1 . . . . . . . . . . Ally Attacks 295 | . . . 7 . . . 13 22 9 . . . . 17 4 99 73 8 20 . . . . 6 . . . . 2 4 11 . . Total Damage 7895 | . . . 62 . . . 96 582 339 . . . . 714 138 1806 2514 324 681 . . . . 220 . . . . 44 60 315 . . Kills 56 | . . . 2 . . . . 8 6 . . . . 6 1 9 15 1 5 . . . . 1 . . . . . 1 1 . . Allies Corrupted . | . . . . . . . . . . . . . . . . . . . . . . . . . . . . . . . . . . Allies Melted 2 | . . . . . . . . . . . . . . . . 1 . . . . . . . . . . . 1 . . . . . Intel | -11 -10 -10 -9 -9 -9 -8 -8 -8 -8 -7 -7 -7 -7 -6 -6 -6 -6 -6 -6 -5 -5 -5 -5 -4 -4 -4 -4 -4 -3 -3 -2 -1 -1 ------- Run | Jun Mat Min Mat Min Exi Min Mat Gar Mat Fac Low Low Zio Pro Fac Ext Cet Arc Hub Fac Upp Upp Zhi Pro Fac Upp Upp War Pro Res Res Acc Com Robot Analysis Total 8 | . 1 . 2 . . . 1 . . . . . . . . . . . . . . . 4 . . . . . . . . . . Derelict Logs Recovered 14 | . . 1 . . . . . . . . 1 1 2 3 . . . . . . 1 2 . 1 . 1 1 . . . . . . Drone Launches . | . . . . . . . . . . . . . . . . . . . . . . . . . . . . . . . . . . Drone Recoveries . | . . . . . . . . . . . . . . . . . . . . . . . . . . . . . . . . . . Exploration | -11 -10 -10 -9 -9 -9 -8 -8 -8 -8 -7 -7 -7 -7 -6 -6 -6 -6 -6 -6 -5 -5 -5 -5 -4 -4 -4 -4 -4 -3 -3 -2 -1 -1 ------------- Run | Jun Mat Min Mat Min Exi Min Mat Gar Mat Fac Low Low Zio Pro Fac Ext Cet Arc Hub Fac Upp Upp Zhi Pro Fac Upp Upp War Pro Res Res Acc Com Turns Passed 39260 | 137 648 53 833 46 571 363 1237 2174 1355 1794 948 827 3032 807 2496 2139 457 644 1232 1560 707 1668 664 726 1987 1325 1084 1454 1016 1345 798 2074 1059 Spaces Moved 15093 | 74 408 28 321 18 238 115 482 745 591 682 385 349 1314 290 890 724 154 166 454 522 285 584 307 268 707 505 340 565 389 499 311 550 833 Core 155 | 6 . . . . . . . . . . . . . . . . . . . . . . . . . . . . . . . . 149 Treads 13666 | . . . 159 18 238 115 482 745 591 682 385 349 1314 290 890 724 154 166 454 522 285 584 307 268 707 505 340 565 389 499 311 550 78 Legs 666 | 68 408 28 162 . . . . . . . . . . . . . . . . . . . . . . . . . . . . . . Wheels 290 | . . . . . . . . . . . . . . . . . . . . . . . . . . . . . . . . . 290 Hover . | . . . . . . . . . . . . . . . . . . . . . . . . . . . . . . . . . . Flight 316 | . . . . . . . . . . . . . . . . . . . . . . . . . . . . . . . . . 316 Fastest Speed 34 | 50 120 190 160 240 240 160 160 240 160 236 236 236 156 235 160 242 242 240 240 240 243 243 163 240 240 240 242 242 247 247 166 165 34 Average Speed 222 | 115 125 190 186 240 240 180 198 240 165 236 236 236 229 235 239 242 242 241 240 241 243 243 202 240 240 240 269 242 247 247 243 243 105 Slowest Speed 330 | 120 190 190 330 240 240 240 240 240 240 236 236 236 236 236 242 242 242 242 240 243 243 245 243 243 240 243 325 247 247 247 248 252 250 Overloaded Moves . | . . . . . . . . . . . . . . . . . . . . . . . . . . . . . . . . . . Propulsion Burnouts . | . . . . . . . . . . . . . . . . . . . . . . . . . . . . . . . . . . Robots Hopped 3 | . . . . . . . . . . . . . . . . . . . . . . . . . . . . . . . . . 3 Cave-ins Triggered 2 | . . . . . . . . . . . . . . 1 . . . . . . . . . . . . . . . . . 1 . Teleports 1 | . . . . . . . . . . . . . . . . . . . . . . . . . . . . 1 . . . . . Exploration Rate (%) 44 | 6 77 10 44 7 61 38 42 82 37 21 52 55 80 41 19 82 73 81 49 10 50 55 61 51 15 64 60 75 45 11 12 23 31 Regions Visited 33 Branch Regions 21 Pre-discovered Areas 9 | . 1 1 1 . . . 1 . . . 1 . . . . . . . . . . 1 3 . . . . . . . . . . Known Exits Taken 24 | . . . . . . . 1 . . 1 1 1 1 1 1 1 1 1 1 1 1 1 1 1 1 1 1 1 1 1 1 1 . Unknown Exits Taken 8 | 1 1 1 1 1 1 1 . . 1 . . . . . . . . . . . . . . . . . . . . . . . . Scrap Searched 22 | . . . . . . 1 . . . . . 1 3 4 . . . . . . 1 2 . 2 . 3 2 . 3 . . . . Spaces Dug 234 | . . . . 11 . . . . . 2 . . . . 9 . . . 20 10 . 12 . . 2 3 3 . 15 . 1 48 98 Terrain Destroyed 944 | . . . . 11 . 25 23 6 3 3 1 1 . 31 13 52 13 29 209 34 . 53 . 48 24 17 33 4 59 11 1 132 108 Melee 21 | . . . . . . . . . . . . . . . 9 . . . . . . . . . . . . . . . . . 12 Projectile 436 | . . . . . . . . 6 3 3 1 1 . 1 4 17 13 29 45 34 . 52 . 10 24 17 33 4 1 11 1 106 20 AOE 485 | . . . . 11 . 25 23 . . . . . . 30 . 35 . . 163 . . . . 38 . . . . 58 . . 26 76 Terrain Rammed . | . . . . . . . . . . . . . . . . . . . . . . . . . . . . . . . . . . Walls Destroyed . | . . . . . . . . . . . . . . . . . . . . . . . . . . . . . . . . . . Machines Disabled . | . . . . . . . . . . . . . . . . . . . . . . . . . . . . . . . . . . Actions | -11 -10 -10 -9 -9 -9 -8 -8 -8 -8 -7 -7 -7 -7 -6 -6 -6 -6 -6 -6 -5 -5 -5 -5 -4 -4 -4 -4 -4 -3 -3 -2 -1 -1 --------- Run | Jun Mat Min Mat Min Exi Min Mat Gar Mat Fac Low Low Zio Pro Fac Ext Cet Arc Hub Fac Upp Upp Zhi Pro Fac Upp Upp War Pro Res Res Acc Com Total 18883 | 99 495 28 433 20 241 258 664 986 850 820 409 353 1338 387 1116 985 210 335 541 766 299 705 345 311 945 574 448 644 428 584 351 972 943 Wait 1696 | 2 27 1 25 . . 134 64 55 162 68 10 5 10 47 86 34 15 93 55 196 11 17 4 10 182 35 66 23 22 39 9 169 20 Move 15055 | 73 407 27 320 17 237 114 481 744 590 681 384 348 1313 289 889 723 153 165 453 521 285 583 306 267 706 504 339 564 388 498 310 549 827 Hop 3 | . . . . . . . . . . . . . . . . . . . . . . . . . . . . . . . . . 3 Pick Up 183 | 6 9 . 10 . 2 . 25 3 11 14 1 . 3 6 10 3 8 6 . 5 1 2 6 1 10 3 2 7 1 8 3 11 6 Fast Attach 110 | 6 5 . 2 . . 1 1 1 2 1 . . 5 4 10 2 1 8 . 4 . 4 10 2 2 . 3 9 . 3 5 9 10 Attach 92 | . . . 4 . . . 6 5 2 2 1 . . 2 4 1 . 2 . 2 . 9 2 . 5 3 1 1 . 5 2 24 9 Detach 16 | . . . 1 . . . . . . . . . . . 1 . . . . . . 2 1 . . . . 2 . 1 . 2 6 Swap 275 | . 3 . 5 2 . 2 13 10 7 12 5 . . 11 33 21 8 13 6 6 1 12 2 9 5 12 6 13 7 7 8 34 2 Drop 238 | . 13 . 5 . 2 . 16 8 16 14 . . 7 10 21 7 10 12 . 5 1 . 10 4 9 1 . 19 1 10 11 10 16 Fire 900 | 12 26 . 51 1 . 7 56 71 57 28 8 . . 18 43 61 15 35 23 27 . 55 4 17 24 16 29 6 9 13 3 158 27 Melee 33 | . . . . . . . . . . . . . . . 18 . . . . . . . . . . . . . . . . . 15 Ram 1 | . . . . . . . . . . . . . . . . . . . . . . . . . . . . . . . . . 1 Kick 13 | . 5 . 8 . . . . . . . . . . . . . . . . . . . . . . . . . . . . . . Crush 25 | . . . 2 . . . 2 1 3 . . . . . 1 1 . 1 4 . . . . 1 2 . . . . . . 6 1 Escape Stasis 36 | . . . . . . . . 22 . . . . . . . 14 . . . . . . . . . . . . . . . . . Rewire 207 | . . . . . . . . 66 . . . . . . . 118 . . . . . 21 . . . . 2 . . . . . . Trap . | . . . . . . . . . . . . . . . . . . . . . . . . . . . . . . . . . . Miscellaneous . | . . . . . . . . . . . . . . . . . . . . . . . . . . . . . . . . . . Route ------- -11/Junkyard -10/Materials (discovered 4 exits: *Mat x2 / [*Min x2]) -10/Mines -9/Materials (discovered 2 exits: *Mat / [*Min]) -9/Mines -9/Exiles -8/Mines -8/Materials (discovered 2 exits: *Fac / Gar) -8/Garrison (discovered 3 exits: *Mat x3) -8/Materials (discovered 2 exits: *Fac x2) -7/Factory (discovered 2 exits: *Fac / *Low) -7/Lower Caves -7/Lower Caves -7/Zion -6/Proximity Caves -6/Factory (discovered 3 exits: *Fac / *Ext x2) -6/Extension (discovered 2 exits: *Fac / *Cet) -6/Cetus (discovered 2 exits: *Fac / *Arc) -6/Archives (discovered 2 exits: *Hub x2) -6/Hub_04(d) -5/Factory (discovered 2 exits: *Upp x2) -5/Upper Caves -5/Upper Caves (discovered 2 exits: *Fac / *Zhi) -5/Zhirov -4/Proximity Caves -4/Factory (discovered 3 exits: *Upp x2 / Arm) -4/Upper Caves -4/Upper Caves (discovered 2 exits: *Res / *War) -4/Warlord -3/Proximity Caves -3/Research (discovered 2 exits: *Res x2) -2/Research (discovered 4 exits: *Acc x3 / *Tes) -1/Access (discovered 2 exits: [*Sur] / *Com) -1/Command History --------- Turn | Location | Event 5 | -11/Junkyard | Discovered new exit (range 16) 138 | -11/Junkyard | Entered Materials 220 | -10/Materials | Central database locked down 301 | -10/Materials | Build established: Mutant 460 | -10/Materials | Discovered new exit (range 15) 569 | -10/Materials | Discovered new exit (range 3) 736 | -10/Materials | Discovered new exit (range 10) 761 | -10/Materials | Discovered new exit (range 10) 786 | -10/Materials | Entered Mines 808 | -10/Mines | Learned location of Zion (-7) 816 | -10/Mines | Discovered new exit (range 13) 839 | -10/Mines | Entered Materials 839 | -9/Materials | Accompanied by 2 allies 839 | -9/Materials | Evolved 2 slots: Utility x1, Weapon x1 844 | -9/Materials | Led the pair of lost Derelicts to an unsafe place 1144 | -9/Materials | Build established: Gunner 1395 | -9/Materials | Discovered new exit (range 6) 1580 | -9/Materials | Discovered new exit (range 7) 1672 | -9/Materials | Entered Mines 1674 | -9/Mines | Met a Derelict bent on vengeance 1706 | -9/Mines | Deemed a non-threat by the Exiles lab entrance 1709 | -9/Mines | Discovered new exit (range 5) 1718 | -9/Mines | Entered Exiles 1778 | -9/Exiles | Met 8R-AWN 1819 | -9/Exiles | Met EX-HEX 1884 | -9/Exiles | Met EX-BIN 1910 | -9/Exiles | Aligned with FarCom system 1913 | -9/Exiles | Given EX-Vault access code 1973 | -9/Exiles | Build established: Mutant 1985 | -9/Exiles | Opened EX-Vault 2007 | -9/Exiles | Found Gui. Plasma Cannon 2054 | -9/Exiles | Warned to stay clear of 0b10 Research branches 2133 | -9/Exiles | Met EX-DEC 2268 | -9/Exiles | Discovered new exit (range 10) 2289 | -9/Exiles | Left Exiles lab with Gui. Plasma Cannon 2289 | -9/Exiles | Entered Mines 2420 | -8/Mines | Discovered new exit (range 11) 2595 | -8/Mines | Build established: Skirmisher 2652 | -8/Mines | Entered Materials 2652 | -8/Materials | Evolved 2 slots: Propulsion x2 3397 | -8/Materials | Build established: Scavenger-Skirmisher 3681 | -8/Materials | Identified exit to Garrison 3696 | -8/Materials | Discovered new exit (range 16) 3719 | -8/Materials | Garrison activated, responded to threat 3889 | -8/Materials | Entered Garrison 3934 | -8/Garrison | Triggered checkpoint 4055 | -8/Garrison | Garrison Relay disabled 4209 | -8/Garrison | Triggered checkpoint 4283 | -8/Garrison | Triggered checkpoint 4420 | -8/Garrison | Triggered checkpoint 4554 | -8/Garrison | Discovered new exit (range 14) 4692 | -8/Garrison | Triggered checkpoint 4722 | -8/Garrison | Garrison Relay disabled 4818 | -8/Garrison | Triggered checkpoint 4952 | -8/Garrison | Triggered checkpoint 5013 | -8/Garrison | Garrison Relay disabled 5149 | -8/Garrison | Discovered new exit (range 10) 5196 | -8/Garrison | Triggered checkpoint 5248 | -8/Garrison | Triggered checkpoint 5319 | -8/Garrison | Garrison Relay disabled 5530 | -8/Garrison | Triggered checkpoint 5727 | -8/Garrison | Discovered new exit (range 12) 5728 | -8/Garrison | Triggered checkpoint 5770 | -8/Garrison | Triggered checkpoint 5786 | -8/Garrison | Garrison Relay disabled 5849 | -8/Garrison | P-60 Hacker assimilated allied Bruiser 3a 6063 | -8/Garrison | Entered Materials 6063 | -8/Materials | Accompanied by 3 allies 6347 | -8/Materials | Discovered new exit (range 16) 6422 | -8/Materials | Build established: Skirmisher 6781 | -8/Materials | Repaired Gauss Rifle 6820 | -8/Materials | Repaired Hrd. Medium Armor Plating 7020 | -8/Materials | Discovered new exit (range 16) 7418 | -8/Materials | Entered Factory 7418 | -7/Factory | Evolved 2 slots: Utility x2 7704 | -7/Factory | Build established: Scavenger-Skirmisher 8534 | -7/Factory | Discovered new exit (range 11) 8571 | -7/Factory | Identified exit to Lower Caves 8677 | -7/Factory | Repaired Gauss Rifle 8905 | -7/Factory | Discovered new exit (range 15) 9212 | -7/Factory | Entered Lower Caves 9326 | -7/Lower Caves | Encountered a Warlord checkpoint 9332 | -7/Lower Caves | Spotted B-75 Beast 9358 | -7/Lower Caves | Learned Factory stockpile data 9382 | -7/Lower Caves | Met a Warlord Commander 9383 | -7/Lower Caves | Learned location of Warlord (-4) 9388 | -7/Lower Caves | Found Encrypted Comm Array 9517 | -7/Lower Caves | Build established: Scavenger-Tank 9966 | -7/Lower Caves | Discovered new exit (range 9) 9983 | -7/Lower Caves | Identified exit to Lower Caves 10160 | -7/Lower Caves | Entered another Lower Caves area 10737 | -7/Lower Caves | Learned location of 1 exit from Proximity Caves 10949 | -7/Lower Caves | Discovered new exit (range 5) 10956 | -7/Lower Caves | Identified exit to Zion 10987 | -7/Lower Caves | Entered Zion 11036 | -7/Zion | Discovered new exit (range 16) 11075 | -7/Zion | System corruption cleaned by Quarantine Array 11474 | -7/Zion | Build established: Scavenger-Mutant 11649 | -7/Zion | Gained Derelict followers 11757 | -7/Zion | Learned Factory emergency access door positions 11771 | -7/Zion | Learned location of 1 exit from Factory 13106 | -7/Zion | Build established: Scavenger-Tank 14004 | -7/Zion | Identified exit to Proximity Caves 14019 | -7/Zion | Entered Proximity Caves 14019 | -6/Proximity Caves | Accompanied by 5 allies 14020 | -6/Proximity Caves | Identified exit to Factory 14139 | -6/Proximity Caves | Spotter reported a threat 14146 | -6/Proximity Caves | Spotter reported a threat 14497 | -6/Proximity Caves | Learned Factory terminal intel 14553 | -6/Proximity Caves | Learned Factory security intel 14601 | -6/Proximity Caves | Build established: Scavenger-Mutant 14722 | -6/Proximity Caves | Crushed by falling debris 14741 | -6/Proximity Caves | Found Unknown Protection 14741 | -6/Proximity Caves | Identified Imp. Powered Armor 14826 | -6/Proximity Caves | Entered Factory 14826 | -6/Factory | Accompanied by 1 ally 14826 | -6/Factory | Evolved 2 slots: Power x1, Utility x1 14827 | -6/Factory | Identified exit to Extension 14832 | -6/Factory | Loaded intel: 28 terminal locations 14982 | -6/Factory | Build established: Scavenger-Tank 15561 | -6/Factory | Build established: Scavenger-Mutant 15698 | -6/Factory | Found Prototype Launcher 15698 | -6/Factory | Identified Scatter Rocket Array 16194 | -6/Factory | Build established: Scavenger-Skirmisher 16324 | -6/Factory | Discovered new exit (range 8) 16935 | -6/Factory | Build established: Scavenger-Mutant 17322 | -6/Factory | Entered Extension 17456 | -6/Extension | Rescued a captive Derelict 17456 | -6/Extension | Rescued a captive Derelict 17826 | -6/Extension | Build established: Scavenger-Skirmisher 18203 | -6/Extension | Rescued a captive Derelict 18396 | -6/Extension | Build established: Commander-Skirmisher 18583 | -6/Extension | Spotted B-75 Beast 18599 | -6/Extension | Destroyed B-75 Beast 18613 | -6/Extension | Spotted B-75 Beast 18657 | -6/Extension | Destroyed B-75 Beast 18733 | -6/Extension | Rescued a captive Derelict 18734 | -6/Extension | Rescued a captive Derelict 18919 | -6/Extension | Build established: Tank 19017 | -6/Extension | Rescued A7 19256 | -6/Extension | Rescued a captive Derelict 19257 | -6/Extension | Rescued a captive Derelict 19408 | -6/Extension | Discovered new exit (range 10) 19410 | -6/Extension | Discovered new exit (range 6) 19436 | -6/Extension | Identified exit to Factory 19445 | -6/Extension | Identified exit to Cetus 19461 | -6/Extension | Entered Cetus 19461 | -6/Cetus | Accompanied by 6 allies (A7) 19466 | -6/Cetus | Acquired a Cetus Manufacturing Module code from A7 19491 | -6/Cetus | Spotted Cetus Guard 19491 | -6/Cetus | Spotted Cetus Guard 19498 | -6/Cetus | Spotted Cetus Guard 19501 | -6/Cetus | Spotted Cetus Guard 19507 | -6/Cetus | Allies destroyed Cetus Guard 19509 | -6/Cetus | Allies destroyed Cetus Guard 19510 | -6/Cetus | Allies destroyed Cetus Guard 19515 | -6/Cetus | Destroyed Cetus Guard 19647 | -6/Cetus | Started Cetus Manufacturing Module 19667 | -6/Cetus | Escorted A7 to Cetus Mainframe 19672 | -6/Cetus | Manufactured an Enhanced Grunt 19697 | -6/Cetus | Manufactured an Enhanced Grunt 19699 | -6/Cetus | Discovered new exit (range 15) 19722 | -6/Cetus | Manufactured an Enhanced Grunt 19743 | -6/Cetus | Spotted Cetus Guard 19744 | -6/Cetus | Spotted Cetus Guard 19747 | -6/Cetus | Manufactured an Enhanced Grunt 19747 | -6/Cetus | Destroyed Cetus Guard 19747 | -6/Cetus | Spotted Cetus Guard 19760 | -6/Cetus | Spotted Cetus Guard 19761 | -6/Cetus | Allies destroyed Cetus Guard 19762 | -6/Cetus | Allies destroyed Cetus Guard 19772 | -6/Cetus | Manufactured an Enhanced Grunt 19779 | -6/Cetus | Destroyed Cetus Guard 19801 | -6/Cetus | Discovered exit to Factory (range 15) 19813 | -6/Cetus | Met Revision 17 19915 | -6/Cetus | Identified exit to Archives 19918 | -6/Cetus | Entered Archives 19918 | -6/Archives | Accompanied by 3 allies (A7) 19923 | -6/Archives | Received a hacking code to weaken MAIN.C 20009 | -6/Archives | Discovered new exit (range 16) 20041 | -6/Archives | System corruption reached 10% 20307 | -6/Archives | Discovered new exit (range 16) 20373 | -6/Archives | Build established: Scavenger-Skirmisher 20558 | -6/Archives | Identified exit to Hub_04(d) 20562 | -6/Archives | Entered Hub_04(d) 20562 | -6/Hub_04(d) | Accompanied by 1 ally 20737 | -6/Hub_04(d) | Build established: Scavenger-Tank 21404 | -6/Hub_04(d) | Discovered exit to Factory (range 14) 21659 | -6/Hub_04(d) | Network Hub disabled 21671 | -6/Hub_04(d) | Network Hub disabled 21794 | -6/Hub_04(d) | Entered Factory 21794 | -5/Factory | Evolved 2 slots: Utility x2 21944 | -5/Factory | Identified exit to Upper Caves 22084 | -5/Factory | Build established: Scavenger-Skirmisher 22270 | -5/Factory | Repaired Imp. Medium Treads 22325 | -5/Factory | Repaired Centrium Medium Armor Plating 22349 | -5/Factory | Repaired Imp. Cooling System 22714 | -5/Factory | Build established: Scavenger-Tank 23354 | -5/Factory | Entered Upper Caves 23675 | -5/Upper Caves | Learned Factory trap positions 23945 | -5/Upper Caves | Discovered new exit (range 20) 24059 | -5/Upper Caves | Identified exit to Upper Caves 24061 | -5/Upper Caves | Entered another Upper Caves area 24127 | -5/Upper Caves | Discovered new exit (range 16) 24424 | -5/Upper Caves | Learned Factory garrison access intel 24819 | -5/Upper Caves | Attracted the attention of an 0b10 outpost 24958 | -5/Upper Caves | Lost 4 parts (1n3u) 24965 | -5/Upper Caves | Destroyed 8 combat bots 25364 | -5/Upper Caves | Build established: Tank 25673 | -5/Upper Caves | Discovered new exit (range 20) 25727 | -5/Upper Caves | Identified exit to Zhirov 25729 | -5/Upper Caves | Entered Zhirov 25729 | -5/Zhirov | Accompanied by 1 ally 25729 | -5/Zhirov | Discovered new exit (range 3) 25732 | -5/Zhirov | Identified exit to Proximity Caves 25777 | -5/Zhirov | Met Zhirov 25831 | -5/Zhirov | Learned location of Testing (-2) 25831 | -5/Zhirov | Learned location of Command (-1) 25862 | -5/Zhirov | Zhirov requested help retrieving the SGEMP Prototype 25904 | -5/Zhirov | Found Alien Artifact 25940 | -5/Zhirov | Found Alien Artifact 25940 | -5/Zhirov | Identified Integrated Dissipator 25940 | -5/Zhirov | Installed Integrated Dissipator, increased core heat dissipation (+20) 26043 | -5/Zhirov | Build established: Mutant 26393 | -5/Zhirov | Entered Proximity Caves 26393 | -4/Proximity Caves | Accompanied by 1 ally 26395 | -4/Proximity Caves | Attracted the attention of an 0b10 checkpoint 26800 | -4/Proximity Caves | Learned location of 1 exit from Research 26912 | -4/Proximity Caves | Build established: Scavenger-Tank 27014 | -4/Proximity Caves | Discovered new exit (range 13) 27113 | -4/Proximity Caves | Attracted the attention of an 0b10 outpost 27117 | -4/Proximity Caves | Identified exit to Factory 27119 | -4/Proximity Caves | Entered Factory 27119 | -4/Factory | Evolved 2 slots: Utility x1, Weapon x1 27120 | -4/Factory | Loaded intel: 99 trap records 27121 | -4/Factory | Loaded intel: 4 garrison access locations 27880 | -4/Factory | Identified exit to Upper Caves 27880 | -4/Factory | Identified exit to Armory 29106 | -4/Factory | Entered Upper Caves 29151 | -4/Upper Caves | Spotted B-86 Titan 29359 | -4/Upper Caves | Destroyed B-86 Titan 29714 | -4/Upper Caves | Build established: Scavenger-Skirmisher 30199 | -4/Upper Caves | Discovered new exit (range 9) 30298 | -4/Upper Caves | Identified exit to Upper Caves 30345 | -4/Upper Caves | Build established: Tank 30431 | -4/Upper Caves | Entered another Upper Caves area 30607 | -4/Upper Caves | Learned Research security intel 30610 | -4/Upper Caves | Discovered new exit (range 10) 31317 | -4/Upper Caves | Build established: Scavenger-Mutant 31487 | -4/Upper Caves | Discovered new exit (range 7) 31513 | -4/Upper Caves | Identified exit to Warlord 31515 | -4/Upper Caves | Entered Warlord 31598 | -4/Warlord | System corruption cleaned by Quarantine Array 31891 | -4/Warlord | Received a Watcher feed algorithm from an ecstatic Tinkerer 31971 | -4/Warlord | Visited the Vortex Lab 31979 | -4/Warlord | Warlord's base attacked by MAIN.C 31990 | -4/Warlord | Found Prototype Energy Cannon 31990 | -4/Warlord | Identified Vortex Driver 32217 | -4/Warlord | Met Warlord 32256 | -4/Warlord | Found Prototype Device 32256 | -4/Warlord | Identified Thermal Barrier 32260 | -4/Warlord | Found Prototype Processor 32260 | -4/Warlord | Identified Exp. Core Analyzer 32286 | -4/Warlord | Found Prototype Device 32286 | -4/Warlord | Identified Exp. Phase Shifter 32304 | -4/Warlord | Found Prototype Reactor 32304 | -4/Warlord | Identified Vortex Chain Reactor 32329 | -4/Warlord | Warlord forces counterattacked 32543 | -4/Warlord | Spotted Executioner 32567 | -4/Warlord | Spotted Striker 32574 | -4/Warlord | Identified Transdimensional Reconstructor 32574 | -4/Warlord | Warped through subspace 32595 | -4/Warlord | Build established: Gunner 32654 | -4/Warlord | Warlord base infiltrated, sounded retreat 32655 | -4/Warlord | Enhanced Grunt warped into view 32655 | -4/Warlord | Enhanced Grunt warped into view 32655 | -4/Warlord | Enhanced Grunt warped into view 32655 | -4/Warlord | Enhanced Demolisher warped into view 32655 | -4/Warlord | Enhanced Demolisher warped into view 32655 | -4/Warlord | Enhanced Demolisher warped into view 32659 | -4/Warlord | Spotted Executioner 32659 | -4/Warlord | Spotted Striker 32660 | -4/Warlord | Destroyed Striker 32749 | -4/Warlord | Spotted Striker 32833 | -4/Warlord | Spotted B-90 Cyclops 32882 | -4/Warlord | Spotted Executioner 32890 | -4/Warlord | P-80 Master assimilated allied JL-89R(g) 32895 | -4/Warlord | Spotted Striker 32895 | -4/Warlord | P-70 Sage assimilated allied 7P-5R7(Y) 32896 | -4/Warlord | P-70 Sage assimilated allied H2-Q3X(K) 32898 | -4/Warlord | Spotted H2-Q3X(K) 32911 | -4/Warlord | P-80 Master assimilated allied TA-UA0(m) 32942 | -4/Warlord | Discovered new exit (range 12) 32967 | -4/Warlord | Identified exit to Proximity Caves 32969 | -4/Warlord | Entered Proximity Caves 33933 | -3/Proximity Caves | Discovered new exit (range 4) 33980 | -3/Proximity Caves | Identified exit to Research 33985 | -3/Proximity Caves | Entered Research 33985 | -3/Research | Evolved 2 slots: Utility x2 33986 | -3/Research | Identified exit to Research 34036 | -3/Research | Local machine network offline 34185 | -3/Research | Revision forces began assault on 0b10 34199 | -3/Research | Met up with Revision 17++ 34285 | -3/Research | Build established: Tank 34685 | -3/Research | Research terminal network offline 34725 | -3/Research | Found Prototype Hackware 34911 | -3/Research | Spotted Striker 34913 | -3/Research | Spotted Striker 34918 | -3/Research | Destroyed Striker 35165 | -3/Research | Discovered exit to Research (range 15) 35252 | -3/Research | Build established: Scavenger-Tank 35330 | -3/Research | Entered another Research area 35330 | -2/Research | Warlord forces began assault on 0b10 35330 | -2/Research | Evolved 2 slots: Propulsion x2 35331 | -2/Research | Identified exit to Testing 35345 | -2/Research | Identified exit to Access 35355 | -2/Research | Distinguished unit "Offensive Angels" dispatched to help 35411 | -2/Research | Met up with Warlord 35440 | -2/Research | Research machine network offline 35661 | -2/Research | Spotted Executioner 35662 | -2/Research | Spotted Executioner 36090 | -2/Research | Borebot progress halted 36125 | -2/Research | Borebot progress halted 36128 | -2/Research | Entered Access 36128 | -1/Access | Evolved 2 slots: Power x2 36416 | -1/Access | Build established: Generator-Mutant 36560 | -1/Access | Identified exit to Command 36965 | -1/Access | Destroyed 10 combat bots 37162 | -1/Access | First assault squad dispatched 37281 | -1/Access | System corruption reached 10% 37302 | -1/Access | Crushed by falling debris 37310 | -1/Access | Discovered new exit (range 7) 37313 | -1/Access | Spotted B-99 Colossus 37392 | -1/Access | Destroyed 8 combat bots 37494 | -1/Access | Destroyed 10 combat bots 37711 | -1/Access | System corruption reached 30% 37839 | -1/Access | Destroyed 11 combat bots 37840 | -1/Access | Lost 10 parts (3p2n4u1w) 38131 | -1/Access | Identified Exp. Hacking Suite 38167 | -1/Access | Lost 7 parts (4u3w) 38202 | -1/Access | Entered Command 38230 | -1/Command | Lost 4 parts (2p2n) 38500 | -1/Command | Build established: Hacker-Gunner 38824 | -1/Command | Found Antimissile System 39076 | -1/Command | Spotted B-99 Colossus 39131 | -1/Command | Core integrity fell below 50% 39185 | -1/Command | Lost 3 parts (2n1u) 39190 | -1/Command | Spotted Alpha 7 39232 | -1/Command | Core integrity fell below 20% 39261 | -1/Command | Destroyed by S-43 Plague with Heavy Machine Gun Last Messages --------------- 39153_ Impulse Thruster destroyed. 39154_ Field Propulsion Array destroyed. 39157_ System corrupted: Energy discharge (-4). 39158_ Penetrated by Slug. 39161_ Slug penetrates K-01 Serf. 39161_ Slug penetrates Wall. 39161_ Penetrated by Slug. 39167_ ALERT: Suspicious intruders detected, dispatching Cutter reinforcements to area. 39175_ System corrupted: Component data lost. 39197_ Slammed into K-01 Serf. 39202_ ALERT: Rogue bot located, Programmers report to Command Zone 8E. 39207_ System corrupted: Energy discharge (-35). 39222_ 2LFC/4FGX| HB AFFB= 39232_ Adv. Transmission Jammer destroyed. 39237_ 0B3EDOETXTTEF#Z7LSJ5 39239_ Acquired 127 matter. 39255_ Exp. Core Analyzer destroyed. 39261_ System corrupted: IFF burst signal emitted. Map ----- +----------------------------------------------------+ | ?????????????????????????????????????????????????? | | ?????????????????????????????????????????????????? | | ?????????????????????????????????????????????????? | | ?????????????????????????????????????????????????? | | ?????????????????????????????????????????????????? | | ?????????????????????????????????????????????????? | | ?????????????????????????????????????????????????? | | ?????????????????????????????????????????????????? | | ?????????????????????????????????????????????????? | | ?????????????????????????????????????????????????? | | ?????????????????????????????????????????????????? | | ?????????????????????????????????????????????????? | | ?????????????????????????????????????????????????? | | ???????????######???Y????????????????????????????? | | ???????? #????????????????????????????????? | | ??????# #????????????????????????????????? | | ??????#"""" #????????????????????????????????? | | ??????#"""" #????????????????????????????????? | | ??????#"""" #????????????????????????????????? | | ??????#"""" #????????????????????????????????? | | ??????# #????????????????????????????????? | | ??????# #????????????????????????????????? | | ########"#+###########################+#?????????? | | ss ????????? | | ####### s ???H????? | | ??????# s @ ????????? | | ??????######"####+###########+#######????????????? | | ???????????## # ???????????????? | | ????????????# # *????????????????? | | ????????????# # #?????????????? | | ????????????# # #?????????????? | | ?????????#### # "" "" #?????????????? | | ?????????# " " """" """" ] #?????????????? | | ?????????########### """" """" #?????????????? | | ???????????????????# "" "" #??????#??????? | | ???????????????????# #????? +??????? | | ???????????????????# #???? #??????? | | ???????????????????########+############ #??????? | | ?????????????????????# #??????? | | ?????????????????????# +??????? | | ?????????????????????########""######+#####??????? | | ????????????????????????????### ## #???????? | | ########??????????????????????## # #???????? | | ! #???????????????????????##" #???????? | | #????????????????????????## #???????? | | #?????????????????????????# #???????? | | #?????????????????????????# #???????? | | " #?????????????????????????# #???????? | | "" == #????????????????????????#" #???????? | | ""] =][#????????????????????????#" #???????? | +----------------------------------------------------+ Best States ------------- Heat Dissipation 114 Coolant Potential 120 Energy Generation 95 Energy Capacity 1200 Matter Stores 400 Matter Capacity 400 Sight Range 16 Robot Scan Range 16 Terrain Scan Range 24 Terrain Scan Density 210 Jamming Range 16 Base Temperature (-) 200 Armor Coverage 900 Resistance: KI 30 Resistance: TH 50 Resistance: EM 20 Weapon Cycling 15 Phase Shifting 20 Evasion (%) 63 Targeting Accuracy 8 Core Analysis 8 Recoil Reduction 6 Kinecelleration 30 Offensive Hacking 24 Defensive Hacking 28 Item Schematics ----------------- Lrn. Tractor Beam | -8/Materials | Hacked Imp. Powered Armor | -6/Factory | Scanalyzed Point Defense System | -5/Factory | Downloaded Assault Drone Bay | -5/Zhirov | Free Exp. Heat Sink | -5/Zhirov | Free Exp. Optical Array | -5/Zhirov | Free Imp. Arc Thrower | -5/Zhirov | Free Robot Schematics ------------------ None Fabricated ------------ Nothing Alien Tech Used ----------------- Integrated Dissipator Transdimensional Reconstructor Achievements -------------- None Challenges ------------ None Game ------ Seed LinearPhaseProtomatter Manual? 0 Play Time 04:15:03 Cumulative 210.3 hours Start 2023.08.13 @ 20:15:12 End 2023.08.15 @ 20:13:40 Sessions 15 Manual Loads 0 Difficulty Rogue Special Mode None Game No. 243 Rogue 243 Adventurer 0 Explorer 0 Win Type - Total 4 Types 2/0/0/1/0/0/1/0/0 Lore% 70 Gallery% 77 Achievement% 62 Wizard Run 0 Options --------- ASCII 0 Keyboard 0 Movement Numpad Keybinds 0 Fullscreen 1 Font 18/SmallcapsGlow Map View 76x50 Tactical HUD 1 Map Filters NONE Filters NONE Steam 1 RUN: d3a42012-b499-47df-adb6-029201ccfe10